bitfinex/quotes_SOLUSD_20251125
["timestamp","ask_amount","ask_price","bid_price","bid_amount"]
[1764036391875,16.308864,138.36,138.31,7.92974968]
[1764036392170,2.81423762,138.35,138.31,7.92974968]
[1764036392332,2.81423762,138.35,138.32,0.7]
[1764036392532,6.70176168,138.35,138.32,0.7]
[1764036392748,16.308864,138.36,138.32,0.7]
[1764036393080,6.70176168,138.35,138.32,3.9]
[1764036393459,6.70176168,138.35,138.33,0.7]
[1764036394974,23.01062568,138.36,138.33,7.92884056]
[1764036395184,6.70176168,138.37,138.33,7.92884056]
[1764036395388,6.70176168,138.36,138.34,0.7]
[1764036395687,6.70176168,138.35,138.34,0.7]
[1764036395889,6.70176168,138.35,138.32,11.12927727]
[1764036396056,6.70176168,138.34,138.32,10.42927727]
[1764036396252,6.70176168,138.34,138.32,3.9]
[1764036396570,6.70176168,138.34,138.31,7.22996258]
[1764036396571,6.70176168,138.33,138.3,0.7]
[1764036396767,6.70176168,138.32,138.3,0.7]
[1764036399688,16.308864,138.36,138.3,7.93064966]
[1764036399895,6.70176168,138.33,138.3,7.93064966]
[1764036400258,6.70176168,138.32,138.3,0.7]
[1764036400987,6.70176168,138.31,138.3,0.7]
[1764036401399,6.70176168,138.32,138.3,0.7]
[1764036403057,6.70176168,138.32,138.3,7.93059765]
[1764036403264,6.70176168,138.33,138.3,7.93059765]
[1764036403483,6.70176168,138.33,138.31,0.7]
[1764036403898,23.01062568,138.34,138.31,0.7]
[1764036404061,16.308864,138.37,138.31,0.7]
[1764036404263,6.70176168,138.35,138.31,0.7]
[1764036404973,6.70176168,138.36,138.32,7.22961249]
[1764036405376,6.70176168,138.36,138.33,0.7]
[1764036407069,6.70176168,138.36,138.33,7.92887414]
[1764036407384,6.70176168,138.36,138.34,0.7]
[1764036408267,6.70176168,138.35,138.34,0.7]
[1764036409871,6.70176168,138.35,138.32,10.42939656]
[1764036410071,6.70176168,138.34,138.32,0.7]
[1764036410294,6.70176168,138.33,138.31,11.13008696]
[1764036410597,6.70176168,138.32,138.31,3.2]
[1764036410812,6.70176168,138.32,138.28,10.43159257]
[1764036410965,16.308864,138.35,138.28,11.13159257]
[1764036410966,6.70176168,138.3,138.28,11.13159257]
[1764036411278,6.70176168,138.3,138.29,0.7]
[1764036411675,6.70176168,138.3,138.27,3.2]
[1764036411875,6.70176168,138.28,138.27,3.9]
[1764036412092,6.70176168,138.29,138.27,11.13216418]
[1764036412496,6.70176168,138.28,138.27,3.9]
[1764036412694,4.40232988,138.28,138.27,3.9]
[1764036412867,4.40232988,138.28,138.27,3.2]
[1764036413596,4.40232988,138.28,138.27,3.89]
[1764036413888,4.40232988,138.29,138.27,3.89]
[1764036414595,4.40232988,138.29,138.27,3.2]
[1764036414973,20.71119388,138.32,138.27,3.2]
[1764036414974,4.40232988,138.28,138.27,3.2]
[1764036416993,4.40232988,138.28,138.25,7.92306316]
[1764036417594,4.40232988,138.28,138.25,0.69]
[1764036418500,4.40232988,138.29,138.25,7.9232517]
[1764036419088,4.40232988,138.29,138.26,0.7]
[1764036420074,20.71119388,138.28,138.26,0.7]
[1764036420290,16.308864,138.28,138.26,0.7]
[1764036422099,7.22718379,138.37,138.27,13.2122748]
[1764036422278,4.40232988,138.33,138.28,7.60232988]
[1764036422473,3.2,138.37,138.29,0.7]
[1764036422688,4.40232988,138.34,138.29,5.10232988]
[1764036422901,20.71119388,138.34,138.29,5.10232988]
[1764036423085,16.308864,138.31,138.3,0.7]
[1764036423282,20.71119388,138.34,138.3,0.7]
[1764036423589,16.308864,138.34,138.3,5.10232988]
[1764036424100,20.71119388,138.34,138.31,7.9301352]
[1764036424407,16.308864,138.34,138.31,7.9301352]
[1764036424585,4.40232988,138.35,138.32,0.7]
[1764036424791,4.40232988,138.34,138.32,0.7]
[1764036425500,20.71119388,138.34,138.32,0.7]
[1764036426299,20.71119388,138.34,138.29,11.63339664]
[1764036426524,20.71119388,138.34,138.32,0.7]
[1764036432205,20.71119388,138.34,138.32,7.9295928]
[1764036432406,20.71119388,138.34,138.32,0.7]
[1764036433321,20.71119388,138.34,138.32,7.92956079]
[1764036433702,4.40232988,138.34,138.33,0.7]
[1764036435827,20.71119388,138.34,138.33,7.92908985]
[1764036436926,4.40232988,138.34,138.33,7.92908985]
[1764036437431,4.40232988,138.34,138.33,0.7]
[1764036437927,4.40232988,138.34,138.33,7.92908985]
[1764036438302,0.2,138.42,138.34,8.80994492]
[1764036438503,4.40232988,138.39,138.35,3.2]
[1764036438728,4.40232988,138.39,138.36,9.50994492]
[1764036438931,4.40232988,138.4,138.36,9.50994492]
[1764036439223,0.2,138.42,138.37,0.7]
[1764036439525,20.91119388,138.42,138.38,12.00994492]
[1764036440031,4.40232988,138.4,138.39,0.7]
[1764036440604,4.40232988,138.41,138.39,7.92595563]
[1764036441031,0.2,138.42,138.4,0.7]
[1764036441727,0.2,138.42,138.41,3.2]
[1764036442104,0.2,138.42,138.41,3.9]
[1764036442621,0.2,138.42,138.41,11.12491149]
[1764036444113,0.2,138.42,138.41,7.92491149]
[1764036444312,0.2,138.42,138.41,11.12491149]
[1764036447939,0.2,138.42,138.41,0.7]
[1764036448131,0.2,138.42,138.41,3.9]
[1764036449430,0.2,138.42,138.41,11.12491149]
[1764036449837,0.2,138.42,138.41,19.93485641]
[1764036453246,0.2,138.42,138.41,24.33718629]
[1764036454047,0.2,138.42,138.41,19.93485641]
[1764036459750,0.2,138.42,138.41,12.70994492]
[1764036460043,0.2,138.42,138.41,19.93485641]
[1764036460645,0.2,138.42,138.41,24.33718629]
[1764036460824,4.40232988,138.46,138.41,42.39946502]
[1764036461022,4.40232988,138.46,138.43,8.80994492]
[1764036461256,4.40232988,138.46,138.44,3.2]
[1764036461632,20.71119388,138.47,138.45,0.71]
[1764036461829,20.71119388,138.47,138.45,7.93234944]
[1764036462355,4.40232988,138.47,138.45,7.93234944]
[1764036462554,4.40232988,138.46,138.45,7.93234944]
[1764036464730,4.40232988,138.46,138.44,3.2]
[1764036464960,4.40232988,138.45,138.43,10.4235309]
[1764036465457,4.40232988,138.45,138.43,11.1335309]
[1764036465641,4.40232988,138.45,138.44,0.71]
[1764036467150,4.40232988,138.45,138.42,3.2]
[1764036467151,4.60232988,138.45,138.42,3.2]
[1764036467452,4.40232988,138.43,138.42,3.2]
[1764036468078,4.40232988,138.44,138.42,3.91]
[1764036468560,4.40232988,138.43,138.42,3.91]
[1764036469260,4.40232988,138.44,138.42,11.13438953]
[1764036469450,20.71119388,138.44,138.43,0.71]
[1764036469851,20.71119388,138.44,138.42,10.42438953]
[1764036470050,4.40232988,138.43,138.42,3.2]
[1764036470866,4.60232988,138.43,138.4,16.03522703]
[1764036471052,4.40232988,138.41,138.4,19.23522703]
[1764036471438,4.40232988,138.41,138.4,10.42528211]
[1764036471669,4.40232988,138.41,138.4,3.2]
[1764036471837,4.40232988,138.41,138.39,7.22586186]
[1764036472038,4.40232988,138.4,138.39,7.22586186]
[1764036472267,4.40232988,138.4,138.38,19.23627361]
[1764036472453,4.40232988,138.4,138.38,19.94627361]
[1764036472766,4.40232988,138.41,138.39,0.71]
[1764036472940,20.71119388,138.42,138.39,0.71]
[1764036473136,20.71119388,138.42,138.38,12.00994492]
[1764036473336,25.11352376,138.39,138.34,8.80994492]
[1764036473535,4.40232988,138.35,138.33,3.2]
[1764036473738,4.40232988,138.34,138.27,7.92214011]
[1764036473956,4.40232988,138.29,138.25,0.69]
[1764036474154,4.40232988,138.27,138.23,0.69]
[1764036474465,4.40232988,138.25,138.24,3.2]
[1764036474761,2.81852283,138.25,138.22,0.1]
[1764036475065,2.81852283,138.23,138.22,0.1]
[1764036475572,16.308864,138.24,138.22,0.1]
[1764036475864,2.81852283,138.23,138.22,0.1]
[1764036476659,16.308864,138.25,138.22,0.82]
[1764036476859,6.71322385,138.24,138.22,0.82]
[1764036477346,6.71322385,138.24,138.22,8.05433727]
[1764036477870,6.71322385,138.25,138.23,0.72]
[1764036478470,3.4,138.28,138.23,0.72]
[1764036478644,3.2,138.28,138.23,0.72]
[1764036478964,6.71322385,138.26,138.23,0.72]
[1764036479468,6.71322385,138.26,138.24,7.23379629]
[1764036479970,6.71322385,138.26,138.24,7.95379629]
[1764036480149,6.71322385,138.25,138.24,0.72]
[1764036480355,6.71322385,138.25,138.22,11.25448425]
[1764036480570,6.71322385,138.23,138.22,20.06442917]
[1764036481069,6.71322385,138.24,138.23,0.72]
[1764036481265,16.508864,138.28,138.23,0.72]
[1764036481449,6.71322385,138.26,138.24,7.23379629]
[1764036481652,6.71322385,138.27,138.24,7.23379629]
[1764036481857,6.71322385,138.26,138.24,7.95379629]
[1764036482168,6.71322385,138.26,138.23,7.23421254]
[1764036482169,6.71322385,138.25,138.23,7.23421254]
[1764036482355,6.71322385,138.24,138.23,7.23421254]
[1764036482558,6.71322385,138.24,138.22,10.53468211]
[1764036482741,6.71322385,138.23,138.22,10.53468211]
[1764036483149,6.71322385,138.24,138.22,11.25468211]
[1764036483666,6.71322385,138.26,138.23,0.72]
[1764036484370,6.71322385,138.24,138.22,3.3]
[1764036484564,6.71322385,138.23,138.22,3.3]
[1764036484756,6.71322385,138.23,138.22,0.1]
[1764036484949,16.508864,138.27,138.22,0.1]
[1764036485149,23.02208785,138.23,138.22,0.1]
[1764036486678,23.02208785,138.23,138.22,0.82]
[1764036487388,23.02208785,138.23,138.22,0.1]
[1764036491656,16.308864,138.23,138.22,0.1]
[1764036491858,23.02208785,138.23,138.22,0.1]
[1764036492661,23.02208785,138.23,138.22,0.82]
[1764036492852,23.02208785,138.23,138.22,0.1]
[1764036493288,16.308864,138.23,138.22,0.82]
[1764036493660,6.71322385,138.25,138.22,8.054843]
[1764036493857,23.02208785,138.25,138.23,3.2]
[1764036494181,6.71322385,138.25,138.23,3.92]
[1764036494752,6.71322385,138.25,138.23,11.15410455]
[1764036495367,6.71322385,138.25,138.24,0.72]
[1764036496081,6.71322385,138.25,138.23,10.43410455]
[1764036496455,6.71322385,138.25,138.24,0.72]
[1764036496673,2.81882287,138.25,138.24,0.72]
[1764036496960,2.81882287,138.25,138.24,7.95379629]
[1764036497381,2.81882287,138.25,138.24,0.72]
[1764036497561,2.81882287,138.25,138.24,7.95379629]
[1764036498577,2.81882287,138.25,138.23,3.92]
[1764036498968,2.81882287,138.24,138.22,0.1]
[1764036499170,2.81882287,138.24,138.22,8.054843]
[1764036499367,16.308864,138.26,138.23,0.72]
[1764036499558,2.81882287,138.24,138.23,0.72]
[1764036501687,2.81882287,138.24,138.23,7.95431961]
[1764036502273,2.81882287,138.25,138.23,7.95431961]
[1764036502589,2.81882287,138.26,138.24,0.72]
[1764036502970,2.81882287,138.25,138.24,0.72]
[1764036504093,2.81882287,138.25,138.24,7.95379629]
[1764036504265,2.81882287,138.26,138.24,7.95379629]
[1764036504463,2.81882287,138.26,138.24,7.23379629]
[1764036504772,2.81882287,138.26,138.25,0.65]
[1764036505585,16.308864,138.27,138.25,0.65]
[1764036505586,16.308864,138.27,138.25,7.88319298]
[1764036505791,2.81882287,138.28,138.25,7.88319298]
[1764036506090,2.81882287,138.28,138.26,0.65]
[1764036506670,2.81882287,138.29,138.26,7.88228192]
[1764036506978,2.81882287,138.3,138.27,3.2]
[1764036507169,2.81882287,138.3,138.27,3.85]
[1764036507487,2.81882287,138.28,138.27,3.2]
[1764036508001,2.81882287,138.29,138.27,3.2]
[1764036508183,2.81882287,138.29,138.28,0.65]
[1764036510098,2.81882287,138.29,138.28,7.88170378]
[1764036510506,2.81882287,138.29,138.28,0.65]
[1764036511295,2.81882287,138.29,138.27,3.2]
[1764036511499,2.81882287,138.28,138.25,11.08308304]
[1764036511686,2.81882287,138.26,138.25,10.43308304]
[1764036512579,19.12768687,138.26,138.25,3.2]
[1764036512892,2.81882287,138.26,138.25,3.85]
[1764036513284,2.81882287,138.26,138.24,7.88369271]
[1764036513511,2.81882287,138.25,138.23,3.2]
[1764036513709,2.81882287,138.25,138.24,0.65]
[1764036514009,0.2,138.28,138.24,0.65]
[1764036514010,2.81882287,138.26,138.24,0.65]
[1764036514696,2.81882287,138.26,138.24,7.88352409]
[1764036515199,16.308864,138.29,138.25,0.65]
[1764036515383,2.81882287,138.27,138.25,0.65]
[1764036516623,16.508864,138.33,138.26,3.2]
[1764036516795,2.81882287,138.29,138.27,7.2322268]
[1764036516990,2.81882287,138.29,138.27,7.8822268]
[1764036517307,2.81882287,138.29,138.28,0.65]
[1764036518302,16.308864,138.3,138.28,0.65]
[1764036518303,2.81882287,138.3,138.28,0.65]
[1764036518881,2.81882287,138.3,138.29,7.23118085]
[1764036519605,2.81882287,138.3,138.29,7.88118085]
[1764036519814,3.2,138.34,138.29,7.88118085]
[1764036519980,8.80994492,138.38,138.31,8.80994492]
[1764036519981,0.2,138.38,138.31,8.80994492]
[1764036520185,2.81882287,138.34,138.31,8.80994492]
[1764036520410,2.81882287,138.34,138.32,0.65]
[1764036520834,2.81882287,138.34,138.32,7.87922422]
[1764036521122,3.01882287,138.33,138.29,3.85]
[1764036521287,16.308864,138.34,138.29,3.85]
[1764036521489,2.81882287,138.31,138.29,3.85]
[1764036521695,16.308864,138.34,138.3,0.65]
[1764036521696,16.508864,138.34,138.3,0.65]
[1764036521895,2.81882287,138.31,138.3,0.65]
[1764036522800,2.81882287,138.31,138.29,10.43110713]
[1764036523000,2.81882287,138.3,138.29,11.08110713]
[1764036523202,2.81882287,138.3,138.28,7.23149177]
[1764036523405,2.81882287,138.29,138.28,19.89143669]
[1764036523603,2.81882287,138.3,138.29,0.65]
[1764036523813,16.308864,138.33,138.29,0.65]
[1764036524129,2.81882287,138.3,138.29,0.65]
[1764036525499,2.81882287,138.3,138.29,7.88118085]
[1764036525717,2.81882287,138.31,138.29,7.88118085]
[1764036526118,2.81882287,138.3,138.29,0.65]
[1764036526323,2.81882287,138.3,138.29,7.88118085]
[1764036526824,2.81882287,138.3,138.29,0.65]
[1764036527024,2.81882287,138.3,138.29,7.88118085]
[1764036529227,2.81882287,138.3,138.28,10.43158403]
[1764036529524,2.81882287,138.3,138.28,11.08158403]
[1764036529710,2.81882287,138.3,138.28,10.43158403]
[1764036530010,2.81882287,138.3,138.29,0.65]
[1764036531213,2.81882287,138.3,138.28,11.08158403]
[1764036532618,16.308864,138.32,138.29,0.65]
[1764036532824,2.81882287,138.3,138.28,11.10158403]
[1764036534734,2.81882287,138.3,138.29,0.67]
[1764036534905,2.81882287,138.32,138.29,7.90117171]
[1764036535234,2.81882287,138.32,138.29,7.90117655]
[1764036535527,0.2,138.36,138.3,0.68]
[1764036535735,2.81882287,138.34,138.31,3.2]
[1764036536038,2.81882287,138.33,138.31,3.2]
[1764036536203,2.81882287,138.33,138.32,0.68]
[1764036536620,4.39870536,138.34,138.32,7.90919819]
[1764036536810,4.39870536,138.35,138.32,7.90919819]
[1764036537015,16.308864,138.36,138.33,0.68]
[1764036537214,4.39870536,138.35,138.33,0.68]
[1764036538523,20.70756936,138.36,138.33,0.68]
[1764036538719,4.39870536,138.37,138.34,10.42856729]
[1764036538911,4.39870536,138.38,138.34,10.42856729]
[1764036539118,4.39870536,138.39,138.35,0.68]
[1764036539730,4.39870536,138.36,138.34,3.2]
[1764036539932,16.308864,138.36,138.34,3.2]
[1764036540153,4.39870536,138.39,138.35,9.48994492]
[1764036540442,4.39870536,138.41,138.36,9.48994492]
[1764036540616,4.39870536,138.41,138.38,16.03642273]
[1764036540818,4.39870536,138.42,138.38,16.03642273]
[1764036541016,4.39870536,138.4,138.38,16.03642273]
[1764036541211,4.39870536,138.4,138.38,16.71642273]
[1764036541423,4.39870536,138.4,138.39,0.68]
[1764036541623,4.39870536,138.4,138.37,3.2]
[1764036541944,4.39870536,138.38,138.37,3.88]
[1764036542333,4.39870536,138.38,138.37,11.10700007]
[1764036543814,4.39870536,138.38,138.37,3.2]
[1764036544009,4.39870536,138.38,138.36,7.9073525]
[1764036544430,4.39870536,138.39,138.37,0.68]
[1764036545346,4.39870536,138.38,138.37,0.68]
[1764036545533,4.39870536,138.38,138.35,3.2]
[1764036545741,4.39870536,138.36,138.35,12.00994492]
[1764036546030,20.70756936,138.36,138.31,0.68]
[1764036546355,4.39870536,138.33,138.31,3.88]
[1764036546534,4.39870536,138.32,138.31,3.88]
[1764036546722,4.39870536,138.32,138.31,3.2]
[1764036547142,4.39870536,138.32,138.29,9.48994492]
[1764036547331,4.39870536,138.3,138.29,16.04101968]
[1764036547533,4.39870536,138.31,138.29,16.04101968]
[1764036547747,4.39870536,138.31,138.29,16.72101968]
[1764036548046,4.39870536,138.31,138.3,0.68]
[1764036549153,4.39870536,138.31,138.29,7.23107476]
[1764036549332,4.39870536,138.3,138.29,7.91107476]
[1764036549651,4.39870536,138.31,138.29,7.23107476]
[1764036549839,4.39870536,138.32,138.29,7.23107476]
[1764036550035,4.39870536,138.32,138.3,9.48994492]
[1764036550231,16.308864,138.34,138.3,9.48994492]
[1764036550423,4.39870536,138.32,138.31,0.68]
[1764036551249,4.39870536,138.32,138.29,7.91107476]
[1764036551433,4.39870536,138.3,138.29,7.23107476]
[1764036551943,4.39870536,138.3,138.29,0.68]
[1764036552647,4.39870536,138.31,138.29,0.68]
[1764036553042,4.39870536,138.32,138.29,0.68]
[1764036553246,4.39870536,138.31,138.29,7.91092383]
[1764036554537,4.39870536,138.31,138.29,7.23092383]
[1764036554857,4.39870536,138.31,138.3,7.91065798]
[1764036556649,16.308864,138.35,138.3,7.91065798]
[1764036556831,4.39870536,138.34,138.31,3.88]
[1764036557351,4.39870536,138.33,138.31,3.2]
[1764036557743,4.39870536,138.33,138.31,3.88]
[1764036557945,4.39870536,138.34,138.32,0.68]
[1764036558868,4.39870536,138.33,138.32,7.90961249]
[1764036560469,4.39870536,138.33,138.32,0.68]
[1764036561341,4.39870536,138.33,138.32,7.90961249]
[1764036561770,4.39870536,138.36,138.33,8.80994492]
[1764036561971,0.2,138.42,138.35,8.80994492]
[1764036562245,4.39870536,138.37,138.36,7.2275224]
[1764036562444,16.308864,138.36,138.32,3.2]
[1764036562647,4.39870536,138.33,138.32,3.2]
[1764036562943,4.39870536,138.33,138.32,0.72]
[1764036563169,4.39870536,138.34,138.32,0.72]
[1764036564443,4.39870536,138.34,138.32,7.94946634]
[1764036564942,4.39870536,138.33,138.31,7.23002731]
[1764036565170,4.39870536,138.32,138.28,0.72]
[1764036565374,4.39870536,138.29,138.27,0.72]
[1764036566265,4.39870536,138.29,138.27,7.95183422]
[1764036566839,4.39870536,138.28,138.27,7.95183422]
[1764036568361,4.39870536,138.28,138.26,10.43258166]
[1764036568561,4.39870536,138.28,138.26,11.15258166]
[1764036568862,4.39870536,138.28,138.27,0.72]
[1764036569269,4.59870536,138.28,138.22,16.408864]
[1764036569569,4.39870536,138.23,138.22,0.1]
[1764036570655,4.39870536,138.26,138.22,9.62994492]
[1764036570862,4.39870536,138.27,138.22,14.02865028]
[1764036571070,4.39870536,138.27,138.24,8.80994492]
[1764036571258,4.39870536,138.26,138.24,3.2]
[1764036571463,4.39870536,138.27,138.24,12.00994492]
[1764036571673,4.39870536,138.26,138.25,0.72]
[1764036571871,4.39870536,138.27,138.25,0.72]
[1764036572173,4.39870536,138.26,138.24,3.2]
[1764036572345,4.39870536,138.25,138.24,3.2]
[1764036572545,4.39870536,138.25,138.22,7.33469063]
[1764036572774,4.39870536,138.23,138.22,7.33469063]
[1764036572976,4.39870536,138.23,138.22,0.1]
[1764036573170,4.39870536,138.23,138.22,7.33470989]
[1764036573356,4.39870536,138.24,138.22,8.05470989]
[1764036573765,0.2,138.27,138.22,8.05470989]
[1764036573964,4.39870536,138.24,138.22,8.05470989]
[1764036574159,0.2,138.27,138.23,0.72]
[1764036574394,4.39870536,138.25,138.23,0.72]
[1764036574592,4.39870536,138.24,138.23,0.72]
[1764036575189,4.39870536,138.24,138.22,7.33470989]
[1764036575685,0.2,138.27,138.22,0.1]
[1764036575686,4.39870536,138.23,138.22,0.1]
[1764036578683,3.2,138.27,138.22,0.82]
[1764036578879,3.4,138.27,138.22,0.82]
[1764036579184,4.39870536,138.24,138.22,0.82]
[1764036579393,3.4,138.27,138.22,0.82]
[1764036579685,4.39870536,138.24,138.22,0.82]
[1764036579984,19.708864,138.27,138.22,0.82]
[1764036580163,4.39870536,138.24,138.22,0.82]
[1764036580690,4.39870536,138.24,138.22,8.05462758]
[1764036581187,0.2,138.26,138.22,8.05462758]
[1764036581367,4.39870536,138.24,138.23,0.72]
[1764036583095,4.39870536,138.24,138.23,7.95431961]
[1764036583289,4.39870536,138.24,138.23,0.72]
[1764036585990,20.70756936,138.25,138.23,7.95427431]
[1764036586381,4.39870536,138.24,138.23,7.95427431]
[1764036586894,20.70756936,138.25,138.23,7.95427431]
[1764036588074,20.70756936,138.27,138.24,0.72]
[1764036588391,3.4,138.32,138.24,3.92]
[1764036588594,20.70756936,138.29,138.24,3.92]
[1764036588777,20.70756936,138.29,138.25,0.72]
[1764036588977,4.39870536,138.29,138.25,0.72]
[1764036589683,4.39870536,138.28,138.25,7.953097]
[1764036590084,4.39870536,138.28,138.26,0.72]
[1764036591296,4.39870536,138.29,138.26,0.72]
[1764036591874,4.39870536,138.29,138.27,7.2322268]
[1764036592172,4.39870536,138.3,138.27,7.2322268]
[1764036592373,4.39870536,138.3,138.28,0.72]
[1764036592900,3.2,138.32,138.28,0.72]
[1764036592901,3.2,138.32,138.28,7.95163379]
[1764036593200,4.39870536,138.31,138.28,7.95163379]
[1764036593395,4.39870536,138.31,138.29,0.66]
[1764036595100,4.39870536,138.31,138.29,7.89105871]
[1764036596201,4.39870536,138.3,138.29,0.66]
[1764036596602,2.81644871,138.3,138.29,7.89117863]
[1764036597211,2.81644871,138.3,138.29,0.66]
[1764036597708,2.81644871,138.3,138.29,7.89118085]
[1764036598507,2.81644871,138.31,138.29,7.89118085]
[1764036598804,2.81644871,138.33,138.3,0.72]
[1764036599016,2.81644871,138.34,138.3,0.72]
[1764036599194,2.81644871,138.34,138.31,7.2301352]
[1764036599585,2.81644871,138.34,138.32,0.72]
[1764036600282,2.81644871,138.34,138.32,7.94958067]
[1764036600711,2.81644871,138.34,138.33,0.72]
[1764036601082,2.81644871,138.34,138.31,7.94992961]
[1764036601522,2.81644871,138.34,138.32,0.72]
[1764036601814,2.81644871,138.33,138.32,0.72]
[1764036603005,2.81644871,138.33,138.32,7.94961249]
[1764036603727,2.81644871,138.35,138.32,7.94961249]
[1764036604019,2.81644871,138.34,138.33,0.72]
[1764036606727,2.81644871,138.34,138.33,7.94908985]
[1764036606914,2.81644871,138.37,138.33,11.14908985]
[1764036607088,2.81644871,138.38,138.34,9.52994492]
[1764036607611,2.81644871,138.36,138.34,0.72]
[1764036607906,2.81644871,138.36,138.35,0.72]
[1764036608115,2.81644871,138.38,138.35,0.72]
[1764036608490,2.81644871,138.37,138.35,0.72]
[1764036608997,2.81644871,138.37,138.35,7.94764602]
[1764036609510,2.81644871,138.37,138.36,0.72]
[1764036611113,2.81644871,138.37,138.35,7.22764602]
[1764036611417,2.81644871,138.37,138.35,7.94764602]
[1764036611804,2.81644871,138.37,138.36,0.72]
[1764036611991,2.81644871,138.37,138.35,7.22764602]
[1764036612321,2.81644871,138.37,138.35,7.94764602]
[1764036612818,2.81644871,138.37,138.36,0.72]
[1764036613316,2.81644871,138.37,138.33,3.2]
[1764036613620,0.2,138.38,138.34,0.72]
[1764036614320,16.508864,138.38,138.34,0.72]
[1764036614820,2.81644871,138.35,138.34,0.72]
[1764036615206,16.508864,138.38,138.34,0.72]
[1764036615207,2.81644871,138.36,138.34,0.72]
[1764036615512,2.81644871,138.36,138.35,7.22804481]
[1764036616395,2.81644871,138.36,138.35,7.94804481]
[1764036617992,3.01644871,138.36,138.32,0.72]
[1764036618197,2.81644871,138.33,138.32,7.22941117]
[1764036619302,2.81644871,138.33,138.32,7.94941117]
[1764036620113,2.81644871,138.34,138.32,7.94941117]
[1764036620597,2.81644871,138.34,138.33,7.94908985]
[1764036621099,16.308864,138.33,138.29,8.80994492]
[1764036621294,2.81644871,138.3,138.29,7.23103891]
[1764036621498,2.81644871,138.3,138.27,10.43200813]
[1764036621734,19.32531271,138.32,138.27,10.43200813]
[1764036621735,2.81644871,138.28,138.27,10.43200813]
[1764036621916,2.81644871,138.28,138.27,19.24195305]
[1764036622119,2.81644871,138.28,138.27,19.96195305]
[1764036622727,2.81644871,138.29,138.27,19.96195305]
[1764036623026,2.81644871,138.29,138.28,0.72]
[1764036624433,16.508864,138.33,138.28,0.72]
[1764036624602,2.81644871,138.3,138.28,7.95129245]
[1764036624804,2.81644871,138.29,138.28,7.95129245]
[1764036626903,16.308864,138.31,138.28,7.95129245]
[1764036627129,2.81644871,138.29,138.28,7.95129245]
[1764036628526,2.81644871,138.29,138.28,7.23129245]
[1764036629208,2.81644871,138.29,138.28,7.95129245]
[1764036629409,2.81644871,138.33,138.29,8.80994492]
[1764036629605,2.81644871,138.33,138.3,3.2]
[1764036629824,2.81644871,138.32,138.3,3.92]
[1764036630030,2.81644871,138.32,138.31,0.72]
[1764036630330,2.81644871,138.33,138.31,0.72]
[1764036631230,2.81644871,138.33,138.3,3.2]
[1764036631231,2.81644871,138.32,138.3,3.2]
[1764036631412,2.81644871,138.31,138.3,3.2]
[1764036631619,2.81644871,138.31,138.28,11.15136462]
[1764036631925,2.81644871,138.31,138.29,0.72]
[1764036632320,2.81644871,138.3,138.29,0.72]
[1764036632710,2.81644871,138.31,138.29,0.72]
[1764036633336,0.2,138.34,138.3,7.23065798]
[1764036633337,2.81644871,138.32,138.3,7.23065798]
[1764036633727,2.81644871,138.32,138.3,7.95065798]
[1764036634938,2.81644871,138.31,138.3,7.95065798]
[1764036635639,16.308864,138.35,138.3,7.95065798]
[1764036635841,2.81644871,138.33,138.31,0.72]
[1764036636429,2.81644871,138.34,138.31,3.92]
[1764036636815,2.81644871,138.34,138.32,0.72]
[1764036637639,2.81644871,138.34,138.33,7.22908985]
[1764036637837,19.12531271,138.35,138.33,7.22908985]
[1764036638039,19.12531271,138.35,138.33,7.94908985]
[1764036638242,2.81644871,138.34,138.33,0.72]
[1764036638448,2.81644871,138.35,138.33,0.72]
[1764036639226,10.43007568,138.39,138.33,0.72]
[1764036639539,2.81644871,138.37,138.35,7.22804481]
[1764036640048,2.81644871,138.37,138.36,0.72]
[1764036640249,2.81644871,138.37,138.35,0.72]
[1764036640433,2.81644871,138.36,138.35,0.72]
[1764036641843,2.81644871,138.36,138.35,7.94804481]
[1764036642022,2.81644871,138.37,138.35,7.94804481]
[1764036642317,2.81644871,138.37,138.36,0.72]